[Event "Titled Tuesday Blitz July 05 Early 2022"]
[White "Lawson, Eric"]
[Black "Maximov, Dmitry"]
[WhiteFideId "2604116"]
[BlackFideId "14105659"]
[WhiteElo "2471"]
[BlackElo "2494"]
[Result "0-1"]
[Round "10"]
[TimeControl "180+1"]
[Date "2022.07.05"]
[WhiteClock "0:01:29"]
[BlackClock "0:02:01"]

1. d4 {[%clk 0:03:00]}  Nf6 {[%clk 0:02:59]} 2. Bg5 {[%clk 0:03:00]}  c5 {[%clk 0:02:59]} 3. d5 {[%clk 0:03:00]}  Qb6 {[%clk 0:02:58]} 4. Bc1 {[%clk 0:02:59]}  g6 {[%clk 0:02:56]} 5. f3 {[%clk 0:02:57]}  Bg7 {[%clk 0:02:55]} 6. e4 {[%clk 0:02:58]}  O-O {[%clk 0:02:55]} 7. Na3 {[%clk 0:02:56]}  d6 {[%clk 0:02:50]} 8. Nc4 {[%clk 0:02:56]}  Qc7 {[%clk 0:02:47]} 9. a4 {[%clk 0:02:56]}  e6 {[%clk 0:02:40]} 10. Bf4 {[%clk 0:02:52]}  Rd8 {[%clk 0:02:29]} 11. dxe6 {[%clk 0:02:48]}  Bxe6 {[%clk 0:02:29]} 12. c3 {[%clk 0:02:32]}  Nc6 {[%clk 0:02:27]} 13. Nh3 {[%clk 0:02:23]}  Bxh3 {[%clk 0:02:22]} 14. gxh3 {[%clk 0:02:22]}  Qe7 {[%clk 0:02:21]} 15. Bxd6 {[%clk 0:01:56]}  Qe6 {[%clk 0:02:21]} 16. e5 {[%clk 0:01:56]}  Nxe5 {[%clk 0:02:09]} 17. Bxe5 {[%clk 0:01:54]}  Rxd1+ {[%clk 0:02:08]} 18. Rxd1 {[%clk 0:01:55]}  Nd5 {[%clk 0:02:01]} 19. f4 {[%clk 0:01:29]}  Nxf4 {[%clk 0:02:01]} 0-1


[Site "https://www.chess.com"]

[Event "Titled Tuesday Blitz July 05 Early 2022"]
[White "Leisch, Lukas"]
[Black "Molina, Roberto Junio Brito"]
[WhiteFideId "1632094"]
[BlackFideId "2109450"]
[WhiteElo "2216"]
[BlackElo "2432"]
[Result "0-1"]
[Round "10"]
[TimeControl "180+1"]
[Date "2022.07.05"]
[WhiteClock "0:00:56"]
[BlackClock "0:00:17"]

1. b3 {[%clk 0:03:00]}  d5 {[%clk 0:02:59]} 2. Bb2 {[%clk 0:03:01]}  Bg4 {[%clk 0:02:58]} 3. h3 {[%clk 0:02:58]}  Bh5 {[%clk 0:02:58]} 4. g4 {[%clk 0:02:58]}  Bg6 {[%clk 0:02:58]} 5. Bg2 {[%clk 0:02:58]}  c6 {[%clk 0:02:58]} 6. d3 {[%clk 0:02:58]}  f6 {[%clk 0:02:58]} 7. f4 {[%clk 0:02:56]}  h5 {[%clk 0:02:55]} 8. f5 {[%clk 0:02:55]}  Bf7 {[%clk 0:02:54]} 9. Nd2 {[%clk 0:02:53]}  Qd6 {[%clk 0:02:52]} 10. Kf2 {[%clk 0:02:45]}  hxg4 {[%clk 0:02:19]} 11. hxg4 {[%clk 0:02:45]}  Rxh1 {[%clk 0:02:20]} 12. Bxh1 {[%clk 0:02:45]}  Qh2+ {[%clk 0:02:20]} 13. Bg2 {[%clk 0:02:45]}  Nh6 {[%clk 0:02:21]} 14. e4 {[%clk 0:02:37]}  Qh4+ {[%clk 0:02:12]} 15. Kf1 {[%clk 0:02:37]}  Nxg4 {[%clk 0:02:12]} 16. Qe1 {[%clk 0:02:24]}  Nh2+ {[%clk 0:01:40]} 17. Ke2 {[%clk 0:02:24]}  Bh5+ {[%clk 0:01:41]} 18. Ngf3 {[%clk 0:02:20]}  Qf4 {[%clk 0:01:30]} 19. Qf2 {[%clk 0:01:59]}  dxe4 {[%clk 0:01:13]} 20. dxe4 {[%clk 0:01:50]}  Na6 {[%clk 0:01:00]} 21. Rh1 {[%clk 0:01:46]}  Rd8 {[%clk 0:00:59]} 22. Ke1 {[%clk 0:01:30]}  Ng4 {[%clk 0:00:49]} 23. Qxa7 {[%clk 0:01:24]}  Qg3+ {[%clk 0:00:29]} 24. Kd1 {[%clk 0:01:03]}  Nf2+ {[%clk 0:00:27]} 25. Kc1 {[%clk 0:01:01]}  Nxh1 {[%clk 0:00:26]} 26. Bxh1 {[%clk 0:00:58]}  Bxf3 {[%clk 0:00:18]} 27. Bxf3 {[%clk 0:00:58]}  Qe1+ {[%clk 0:00:18]} 28. Bd1 {[%clk 0:00:55]}  Qxd2+ {[%clk 0:00:17]} 29. Kb1 {[%clk 0:00:56]}  Qxd1+ {[%clk 0:00:17]} 0-1


[Site "https://www.chess.com"]

[Event "Titled Tuesday Blitz July 05 Early 2022"]
[White "Maksimovic, Bojan"]
[Black "Prokofiev, Valentyn"]
[WhiteFideId "14408120"]
[BlackFideId "14160161"]
[WhiteElo "2453"]
[BlackElo "2142"]
[Result "1-0"]
[Round "10"]
[TimeControl "180+1"]
[Date "2022.07.05"]
[WhiteClock "0:00:08"]
[BlackClock "0:00:04"]

1. Nf3 {[%clk 0:03:00]}  Nf6 {[%clk 0:02:59]} 2. c4 {[%clk 0:03:00]}  g6 {[%clk 0:02:58]} 3. Nc3 {[%clk 0:03:00]}  Bg7 {[%clk 0:02:57]} 4. e4 {[%clk 0:03:00]}  d6 {[%clk 0:02:57]} 5. d4 {[%clk 0:03:00]}  c5 {[%clk 0:02:55]} 6. d5 {[%clk 0:02:58]}  O-O {[%clk 0:02:56]} 7. Be2 {[%clk 0:02:57]}  e6 {[%clk 0:02:54]} 8. O-O {[%clk 0:02:57]}  Re8 {[%clk 0:02:54]} 9. Bf4 {[%clk 0:02:45]}  Nh5 {[%clk 0:02:36]} 10. Bg5 {[%clk 0:02:43]}  Qb6 {[%clk 0:02:31]} 11. Qd2 {[%clk 0:02:43]}  Na6 {[%clk 0:02:25]} 12. Rad1 {[%clk 0:02:39]}  e5 {[%clk 0:02:20]} 13. g3 {[%clk 0:02:19]}  Bd7 {[%clk 0:01:49]} 14. Nh4 {[%clk 0:02:16]}  Nf6 {[%clk 0:01:48]} 15. f4 {[%clk 0:01:57]}  Bh3 {[%clk 0:01:25]} 16. fxe5 {[%clk 0:00:56]}  Bxf1 {[%clk 0:01:24]} 17. Rxf1 {[%clk 0:00:57]}  Nd7 {[%clk 0:01:21]} 18. e6 {[%clk 0:00:57]}  Ne5 {[%clk 0:01:10]} 19. Nf5 {[%clk 0:00:17]}  gxf5 {[%clk 0:00:33]} 20. exf5 {[%clk 0:00:18]}  f6 {[%clk 0:00:28]} 21. Ne4 {[%clk 0:00:05]}  Rf8 {[%clk 0:00:17]} 22. Bh4 {[%clk 0:00:03]}  Nc7 {[%clk 0:00:17]} 23. Kh1 {[%clk 0:00:02]}  Ne8 {[%clk 0:00:17]} 24. g4 {[%clk 0:00:03]}  h6 {[%clk 0:00:16]} 25. Bf2 {[%clk 0:00:03]}  Qc7 {[%clk 0:00:16]} 26. Be3 {[%clk 0:00:03]}  Kh7 {[%clk 0:00:16]} 27. Rg1 {[%clk 0:00:04]}  b5 {[%clk 0:00:16]} 28. cxb5 {[%clk 0:00:04]}  a6 {[%clk 0:00:16]} 29. bxa6 {[%clk 0:00:05]}  c4 {[%clk 0:00:16]} 30. Bd4 {[%clk 0:00:04]}  Rxa6 {[%clk 0:00:15]} 31. b3 {[%clk 0:00:04]}  Ra8 {[%clk 0:00:04]} 32. h4 {[%clk 0:00:04]}  cxb3 {[%clk 0:00:04]} 33. axb3 {[%clk 0:00:04]}  Rg8 {[%clk 0:00:04]} 34. g5 {[%clk 0:00:04]}  Bh8 {[%clk 0:00:04]} 35. g6+ {[%clk 0:00:04]}  Kg7 {[%clk 0:00:05]} 36. Ng3 {[%clk 0:00:04]}  Kf8 {[%clk 0:00:05]} 37. Qxh6+ {[%clk 0:00:04]}  Bg7 {[%clk 0:00:05]} 38. Qe3 {[%clk 0:00:05]}  Rh8 {[%clk 0:00:06]} 39. h5 {[%clk 0:00:05]}  Qc2 {[%clk 0:00:06]} 40. Rc1 {[%clk 0:00:05]}  Qa2 {[%clk 0:00:02]} 41. Ra1 {[%clk 0:00:05]}  Qxa1+ {[%clk 0:00:02]} 42. Bxa1 {[%clk 0:00:06]}  Rxa1+ {[%clk 0:00:03]} 43. Kg2 {[%clk 0:00:07]}  Nc7 {[%clk 0:00:04]} 44. Qb6 {[%clk 0:00:07]}  Nxd5 {[%clk 0:00:04]} 45. Qxd6+ {[%clk 0:00:07]}  Ne7 {[%clk 0:00:04]} 46. Qd8# {[%clk 0:00:08]} 1-0


[Site "https://www.chess.com"]

[Event "Titled Tuesday Blitz July 05 Early 2022"]
[White "Navarrete Mendez, Gonzalo Alberto"]
[Black "Kucuksari, Kaan"]
[WhiteFideId "5106850"]
[BlackFideId "6380166"]
[WhiteElo "2261"]
[BlackElo "2305"]
[Result "1-0"]
[Round "10"]
[TimeControl "180+1"]
[Date "2022.07.05"]
[WhiteClock "0:01:09"]
[BlackClock "0:01:34"]

1. e4 {[%clk 0:03:00]}  c5 {[%clk 0:02:57]} 2. Nf3 {[%clk 0:03:01]}  Nc6 {[%clk 0:02:55]} 3. Nc3 {[%clk 0:03:01]}  g6 {[%clk 0:02:52]} 4. Bc4 {[%clk 0:03:01]}  Bg7 {[%clk 0:02:53]} 5. O-O {[%clk 0:03:01]}  e6 {[%clk 0:02:52]} 6. d4 {[%clk 0:03:01]}  Nxd4 {[%clk 0:02:51]} 7. Nxd4 {[%clk 0:03:01]}  cxd4 {[%clk 0:02:47]} 8. Nb5 {[%clk 0:03:01]}  d5 {[%clk 0:02:45]} 9. exd5 {[%clk 0:02:58]}  exd5 {[%clk 0:02:46]} 10. Bb3 {[%clk 0:02:57]}  Nf6 {[%clk 0:02:38]} 11. Re1+ {[%clk 0:02:54]}  Ne4 {[%clk 0:02:38]} 12. Bxd5 {[%clk 0:02:44]}  f5 {[%clk 0:02:26]} 13. Bxe4 {[%clk 0:02:13]}  fxe4 {[%clk 0:02:25]} 14. Rxe4+ {[%clk 0:02:13]}  Kf8 {[%clk 0:02:24]} 15. Qf3+ {[%clk 0:01:42]}  Kg8 {[%clk 0:02:14]} 16. Bg5 {[%clk 0:01:35]}  Qd7 {[%clk 0:02:07]} 17. Qb3+ {[%clk 0:01:27]}  Qf7 {[%clk 0:01:53]} 18. Qxf7+ {[%clk 0:01:09]}  Kxf7 {[%clk 0:01:54]} 19. Nd6+ {[%clk 0:01:09]}  Kg8 {[%clk 0:01:53]} 20. Re8+ {[%clk 0:01:10]}  Bf8 {[%clk 0:01:54]} 21. Bh6 {[%clk 0:01:10]}  Be6 {[%clk 0:01:34]} 22. Rxa8 {[%clk 0:01:09]} 1-0


[Site "https://www.chess.com"]

[Event "Titled Tuesday Blitz July 05 Early 2022"]
[White "Niemann, Hans Moke"]
[Black "Naroditsky, Daniel"]
[WhiteFideId "2093596"]
[BlackFideId "2026961"]
[WhiteElo "2632"]
[BlackElo "2608"]
[Result "0-1"]
[Round "10"]
[TimeControl "180+1"]
[Date "2022.07.05"]
[WhiteClock "0:00:02"]
[BlackClock "0:00:13"]

1. e4 {[%clk 0:03:00]}  e5 {[%clk 0:02:57]} 2. Nf3 {[%clk 0:03:00]}  Nc6 {[%clk 0:02:58]} 3. Bc4 {[%clk 0:02:57]}  Nf6 {[%clk 0:02:58]} 4. d3 {[%clk 0:02:57]}  h6 {[%clk 0:02:58]} 5. c3 {[%clk 0:02:55]}  g5 {[%clk 0:02:56]} 6. a4 {[%clk 0:02:51]}  Bg7 {[%clk 0:02:55]} 7. a5 {[%clk 0:02:39]}  a6 {[%clk 0:02:55]} 8. Qb3 {[%clk 0:02:33]}  Qe7 {[%clk 0:02:50]} 9. Nbd2 {[%clk 0:02:29]}  d6 {[%clk 0:02:48]} 10. Nf1 {[%clk 0:02:26]}  Nd8 {[%clk 0:02:36]} 11. Ng3 {[%clk 0:02:22]}  c6 {[%clk 0:02:36]} 12. h4 {[%clk 0:02:10]}  g4 {[%clk 0:02:33]} 13. Nd2 {[%clk 0:01:59]}  O-O {[%clk 0:02:06]} 14. Qa3 {[%clk 0:01:16]}  Qc7 {[%clk 0:01:44]} 15. Ndf1 {[%clk 0:01:12]}  d5 {[%clk 0:01:42]} 16. Bb3 {[%clk 0:01:10]}  Ne6 {[%clk 0:01:28]} 17. Nf5 {[%clk 0:00:56]}  Nf4 {[%clk 0:01:28]} 18. Bxf4 {[%clk 0:00:27]}  Bxf5 {[%clk 0:01:28]} 19. Bg3 {[%clk 0:00:19]}  dxe4 {[%clk 0:01:28]} 20. Ne3 {[%clk 0:00:18]}  Qd7 {[%clk 0:01:02]} 21. Bxe5 {[%clk 0:00:10]}  exd3 {[%clk 0:01:02]} 22. O-O-O {[%clk 0:00:11]}  Ne4 {[%clk 0:00:51]} 23. Nxf5 {[%clk 0:00:08]}  d2+ {[%clk 0:00:46]} 24. Kb1 {[%clk 0:00:08]}  Qxf5 {[%clk 0:00:46]} 25. Bxg7 {[%clk 0:00:07]}  Nxc3+ {[%clk 0:00:46]} 26. Ka1 {[%clk 0:00:08]}  Nxd1 {[%clk 0:00:44]} 27. Bxf8 {[%clk 0:00:08]}  Nxf2 {[%clk 0:00:44]} 28. Rf1 {[%clk 0:00:05]}  Rxf8 {[%clk 0:00:39]} 29. Qd6 {[%clk 0:00:05]}  d1=Q+ {[%clk 0:00:23]} 30. Bxd1 {[%clk 0:00:04]}  Qxa5+ {[%clk 0:00:22]} 31. Kb1 {[%clk 0:00:05]}  Rd8 {[%clk 0:00:21]} 32. Qf4 {[%clk 0:00:02]}  Qd2 {[%clk 0:00:13]} 0-1


[Site "https://www.chess.com"]

[Event "Titled Tuesday Blitz July 05 Early 2022"]
[White "Perez Gormaz, Matias"]
[Black "Averjanov, Alexey"]
[WhiteFideId "3406342"]
[BlackFideId "14109867"]
[WhiteElo "2341"]
[BlackElo "2716"]
[Result "1/2-1/2"]
[Round "10"]
[TimeControl "180+1"]
[Date "2022.07.05"]
[WhiteClock "0:02:21"]
[BlackClock "0:02:37"]

1. e4 {[%clk 0:03:00]}  c6 {[%clk 0:02:59]} 2. Nf3 {[%clk 0:02:59]}  d5 {[%clk 0:02:59]} 3. Nc3 {[%clk 0:03:00]}  Bg4 {[%clk 0:02:59]} 4. h3 {[%clk 0:03:00]}  Bxf3 {[%clk 0:02:57]} 5. Qxf3 {[%clk 0:03:01]}  e6 {[%clk 0:02:58]} 6. Be2 {[%clk 0:03:01]}  dxe4 {[%clk 0:02:58]} 7. Nxe4 {[%clk 0:03:00]}  Nd7 {[%clk 0:02:58]} 8. d4 {[%clk 0:02:58]}  Ngf6 {[%clk 0:02:57]} 9. c3 {[%clk 0:02:52]}  Nxe4 {[%clk 0:02:57]} 10. Qxe4 {[%clk 0:02:53]}  Nf6 {[%clk 0:02:58]} 11. Qc2 {[%clk 0:02:46]}  g6 {[%clk 0:02:58]} 12. a4 {[%clk 0:02:44]}  a5 {[%clk 0:02:58]} 13. Qb3 {[%clk 0:02:43]}  Qc7 {[%clk 0:02:55]} 14. g3 {[%clk 0:02:40]}  Bg7 {[%clk 0:02:53]} 15. Bf4 {[%clk 0:02:40]}  Qe7 {[%clk 0:02:50]} 16. O-O {[%clk 0:02:39]}  Nd5 {[%clk 0:02:50]} 17. Bd2 {[%clk 0:02:37]}  O-O {[%clk 0:02:50]} 18. Rfe1 {[%clk 0:02:37]}  Rfd8 {[%clk 0:02:46]} 19. Bf3 {[%clk 0:02:37]}  Qc7 {[%clk 0:02:45]} 20. Kg2 {[%clk 0:02:37]}  Rd7 {[%clk 0:02:44]} 21. Re2 {[%clk 0:02:30]}  Rad8 {[%clk 0:02:43]} 22. Rae1 {[%clk 0:02:30]}  Bf6 {[%clk 0:02:41]} 23. h4 {[%clk 0:02:27]}  h5 {[%clk 0:02:41]} 24. Bc1 {[%clk 0:02:24]}  Kg7 {[%clk 0:02:40]} 25. Qc2 {[%clk 0:02:21]}  Qb6 {[%clk 0:02:37]} 1/2-1/2


[Site "https://www.chess.com"]

[Event "Titled Tuesday Blitz July 05 Early 2022"]
[White "Preotu, Razvan"]
[Black "Hansen, Eric"]
[WhiteFideId "2613280"]
[BlackFideId "2606771"]
[WhiteElo "2407"]
[BlackElo "2568"]
[Result "1-0"]
[Round "10"]
[TimeControl "180+1"]
[Date "2022.07.05"]
[WhiteClock "0:00:07"]
[BlackClock "0:00:10"]

1. e4 {[%clk 0:03:00]}  c5 {[%clk 0:01:45]} 2. Nf3 {[%clk 0:03:00]}  Nc6 {[%clk 0:01:45]} 3. Bb5 {[%clk 0:02:59]}  e6 {[%clk 0:01:43]} 4. O-O {[%clk 0:02:59]}  Nge7 {[%clk 0:01:43]} 5. Re1 {[%clk 0:02:59]}  a6 {[%clk 0:01:38]} 6. Bf1 {[%clk 0:02:59]}  d6 {[%clk 0:01:38]} 7. c3 {[%clk 0:02:56]}  e5 {[%clk 0:01:34]} 8. h3 {[%clk 0:02:53]}  Ng6 {[%clk 0:01:31]} 9. d4 {[%clk 0:02:53]}  Be7 {[%clk 0:01:31]} 10. dxc5 {[%clk 0:02:36]}  dxc5 {[%clk 0:01:29]} 11. Qxd8+ {[%clk 0:02:37]}  Kxd8 {[%clk 0:01:23]} 12. Be3 {[%clk 0:02:35]}  Kc7 {[%clk 0:01:23]} 13. a4 {[%clk 0:02:34]}  Be6 {[%clk 0:01:23]} 14. Ng5 {[%clk 0:02:28]}  Bxg5 {[%clk 0:01:22]} 15. Bxg5 {[%clk 0:02:28]}  f6 {[%clk 0:01:20]} 16. Be3 {[%clk 0:02:29]}  c4 {[%clk 0:01:19]} 17. a5 {[%clk 0:02:27]}  Rac8 {[%clk 0:01:08]} 18. Nd2 {[%clk 0:02:25]}  Kb8 {[%clk 0:00:44]} 19. Nxc4 {[%clk 0:02:25]}  Bxc4 {[%clk 0:00:39]} 20. Bxc4 {[%clk 0:02:26]}  Nd4 {[%clk 0:00:35]} 21. Bd3 {[%clk 0:02:04]}  Nb3 {[%clk 0:00:30]} 22. Ra3 {[%clk 0:02:04]}  Nc5 {[%clk 0:00:24]} 23. Bc2 {[%clk 0:02:04]}  Rhd8 {[%clk 0:00:25]} 24. f3 {[%clk 0:02:02]}  Nf4 {[%clk 0:00:25]} 25. Rd1 {[%clk 0:01:44]}  Rxd1+ {[%clk 0:00:22]} 26. Bxd1 {[%clk 0:01:45]}  Rd8 {[%clk 0:00:22]} 27. Bc2 {[%clk 0:01:43]}  Ncd3 {[%clk 0:00:21]} 28. b4 {[%clk 0:01:24]}  Ne2+ {[%clk 0:00:19]} 29. Kh2 {[%clk 0:01:22]}  Ne1 {[%clk 0:00:19]} 30. Ba4 {[%clk 0:01:17]}  Nf4 {[%clk 0:00:10]} 31. Bxf4 {[%clk 0:01:02]}  exf4 {[%clk 0:00:11]} 32. Ra1 {[%clk 0:01:02]}  Nd3 {[%clk 0:00:11]} 33. Rd1 {[%clk 0:00:55]}  Kc7 {[%clk 0:00:11]} 34. Bc2 {[%clk 0:00:46]}  Ne5 {[%clk 0:00:12]} 35. Rxd8 {[%clk 0:00:46]}  Kxd8 {[%clk 0:00:13]} 36. Bb3 {[%clk 0:00:45]}  g5 {[%clk 0:00:11]} 37. Bd5 {[%clk 0:00:45]}  Kc7 {[%clk 0:00:12]} 38. Kg1 {[%clk 0:00:33]}  Nd3 {[%clk 0:00:08]} 39. Kf1 {[%clk 0:00:31]}  h6 {[%clk 0:00:06]} 40. Ke2 {[%clk 0:00:31]}  Ne5 {[%clk 0:00:06]} 41. c4 {[%clk 0:00:29]}  Kb8 {[%clk 0:00:05]} 42. b5 {[%clk 0:00:20]}  Kc7 {[%clk 0:00:05]} 43. b6+ {[%clk 0:00:20]}  Kc8 {[%clk 0:00:05]} 44. c5 {[%clk 0:00:21]}  Kb8 {[%clk 0:00:03]} 45. Kd2 {[%clk 0:00:21]}  Ng6 {[%clk 0:00:01]} 46. Bc4 {[%clk 0:00:19]}  Ne5 {[%clk 0:00:01]} 47. Bd5 {[%clk 0:00:15]}  Ng6 {[%clk 0:00:01]} 48. Ke2 {[%clk 0:00:05]}  Ne5 {[%clk 0:00:02]} 49. Kf1 {[%clk 0:00:02]}  Ng6 {[%clk 0:00:02]} 50. Kg1 {[%clk 0:00:02]}  Ne5 {[%clk 0:00:03]} 51. Kh2 {[%clk 0:00:03]}  h5 {[%clk 0:00:03]} 52. h4 {[%clk 0:00:04]}  Kc8 {[%clk 0:00:03]} 53. hxg5 {[%clk 0:00:04]}  fxg5 {[%clk 0:00:04]} 54. Be6+ {[%clk 0:00:04]}  Kb8 {[%clk 0:00:04]} 55. Bd5 {[%clk 0:00:05]}  Nd3 {[%clk 0:00:05]} 56. c6 {[%clk 0:00:05]}  bxc6 {[%clk 0:00:06]} 57. Bxc6 {[%clk 0:00:05]}  Ne5 {[%clk 0:00:06]} 58. Bd5 {[%clk 0:00:06]}  Kc8 {[%clk 0:00:07]} 59. Kg1 {[%clk 0:00:05]}  Kb8 {[%clk 0:00:07]} 60. Kf2 {[%clk 0:00:06]}  Nd3+ {[%clk 0:00:07]} 61. Ke2 {[%clk 0:00:06]}  Ne5 {[%clk 0:00:08]} 62. Kd2 {[%clk 0:00:06]}  Kc8 {[%clk 0:00:09]} 63. Kc3 {[%clk 0:00:07]}  g4 {[%clk 0:00:09]} 64. fxg4 {[%clk 0:00:07]}  Nxg4 {[%clk 0:00:09]} 65. Be6+ {[%clk 0:00:07]}  Kb7 {[%clk 0:00:09]} 66. Bxg4 {[%clk 0:00:08]}  hxg4 {[%clk 0:00:10]} 67. Kd2 {[%clk 0:00:08]}  Kc6 {[%clk 0:00:10]} 68. Ke2 {[%clk 0:00:08]}  Kd6 {[%clk 0:00:10]} 69. e5+ {[%clk 0:00:07]} 1-0


[Site "https://www.chess.com"]

[Event "Titled Tuesday Blitz July 05 Early 2022"]
[White "Svane, Rasmus"]
[Black "Malek, Jan"]
[WhiteFideId "4657101"]
[BlackFideId "21864080"]
[WhiteElo "2674"]
[BlackElo "2145"]
[Result "1-0"]
[Round "10"]
[TimeControl "180+1"]
[Date "2022.07.05"]
[WhiteClock "0:01:24"]
[BlackClock "0:01:06"]

1. Nf3 {[%clk 0:02:58]}  d5 {[%clk 0:02:58]} 2. g3 {[%clk 0:02:58]}  Nd7 {[%clk 0:02:55]} 3. d4 {[%clk 0:02:58]}  Nb6 {[%clk 0:02:55]} 4. Nc3 {[%clk 0:02:58]}  Bf5 {[%clk 0:02:54]} 5. a4 {[%clk 0:02:56]}  e6 {[%clk 0:02:52]} 6. Nh4 {[%clk 0:02:55]}  Bg6 {[%clk 0:02:52]} 7. a5 {[%clk 0:02:53]}  Nc8 {[%clk 0:02:52]} 8. a6 {[%clk 0:02:51]}  b6 {[%clk 0:02:51]} 9. Nxg6 {[%clk 0:02:45]}  hxg6 {[%clk 0:02:51]} 10. e4 {[%clk 0:02:46]}  Nge7 {[%clk 0:02:46]} 11. Bg5 {[%clk 0:02:39]}  c6 {[%clk 0:02:41]} 12. exd5 {[%clk 0:02:28]}  exd5 {[%clk 0:02:37]} 13. Qf3 {[%clk 0:02:21]}  f6 {[%clk 0:02:35]} 14. Bf4 {[%clk 0:02:18]}  Nd6 {[%clk 0:02:33]} 15. Bd3 {[%clk 0:02:16]}  Kf7 {[%clk 0:02:32]} 16. h4 {[%clk 0:02:13]}  Nef5 {[%clk 0:02:29]} 17. Bxd6 {[%clk 0:02:05]}  Nxd6 {[%clk 0:02:26]} 18. h5 {[%clk 0:02:05]}  gxh5 {[%clk 0:02:20]} 19. Rxh5 {[%clk 0:02:02]}  Qe8+ {[%clk 0:01:54]} 20. Kf1 {[%clk 0:02:00]}  Be7 {[%clk 0:01:33]} 21. Nxd5 {[%clk 0:01:59]}  Rxh5 {[%clk 0:01:06]} 22. Qxh5+ {[%clk 0:02:00]}  Kg8 {[%clk 0:01:06]} 23. Qh7+ {[%clk 0:01:31]}  Kf8 {[%clk 0:01:06]} 24. Nc7 {[%clk 0:01:24]} 1-0


[Site "https://www.chess.com"]

[Event "Titled Tuesday Blitz July 05 Early 2022"]
[White "Tokman, Ariel"]
[Black "Pakleza, Zbigniew"]
[WhiteFideId "117420"]
[BlackFideId "1119290"]
[WhiteElo "2268"]
[BlackElo "2467"]
[Result "1-0"]
[Round "10"]
[TimeControl "180+1"]
[Date "2022.07.05"]
[WhiteClock "0:00:02"]
[BlackClock "0:00:03"]

1. e4 {[%clk 0:03:00]}  d6 {[%clk 0:02:58]} 2. Nf3 {[%clk 0:03:00]}  Nf6 {[%clk 0:02:58]} 3. Nc3 {[%clk 0:03:00]}  Bg4 {[%clk 0:02:58]} 4. Be2 {[%clk 0:02:57]}  e6 {[%clk 0:02:58]} 5. d3 {[%clk 0:02:57]}  Be7 {[%clk 0:02:58]} 6. O-O {[%clk 0:02:57]}  O-O {[%clk 0:02:55]} 7. a4 {[%clk 0:02:57]}  d5 {[%clk 0:02:55]} 8. Nd2 {[%clk 0:02:50]}  Bxe2 {[%clk 0:02:54]} 9. Qxe2 {[%clk 0:02:51]}  c5 {[%clk 0:02:50]} 10. Nf3 {[%clk 0:02:49]}  Nc6 {[%clk 0:02:49]} 11. Bg5 {[%clk 0:02:45]}  Re8 {[%clk 0:02:47]} 12. Rfe1 {[%clk 0:02:44]}  Nb4 {[%clk 0:02:40]} 13. exd5 {[%clk 0:02:39]}  exd5 {[%clk 0:02:34]} 14. Qd2 {[%clk 0:02:38]}  h6 {[%clk 0:02:29]} 15. Bh4 {[%clk 0:02:37]}  a6 {[%clk 0:02:01]} 16. Re5 {[%clk 0:02:36]}  d4 {[%clk 0:01:43]} 17. Ne2 {[%clk 0:02:14]}  Nfd5 {[%clk 0:01:24]} 18. Bxe7 {[%clk 0:02:12]}  Rxe7 {[%clk 0:01:25]} 19. Ng3 {[%clk 0:01:56]}  Rxe5 {[%clk 0:01:06]} 20. Nxe5 {[%clk 0:01:57]}  Qg5 {[%clk 0:01:00]} 21. Qxg5 {[%clk 0:01:50]}  hxg5 {[%clk 0:01:01]} 22. Rc1 {[%clk 0:01:37]}  Re8 {[%clk 0:00:57]} 23. Nc4 {[%clk 0:01:31]}  Nf4 {[%clk 0:00:53]} 24. Kf1 {[%clk 0:01:25]}  g6 {[%clk 0:00:47]} 25. Ne4 {[%clk 0:01:18]}  Kg7 {[%clk 0:00:35]} 26. Nxg5 {[%clk 0:00:54]}  f5 {[%clk 0:00:20]} 27. g3 {[%clk 0:00:49]}  Nfd5 {[%clk 0:00:18]} 28. a5 {[%clk 0:00:35]}  Kf6 {[%clk 0:00:18]} 29. Nf3 {[%clk 0:00:31]}  g5 {[%clk 0:00:14]} 30. h4 {[%clk 0:00:27]}  gxh4 {[%clk 0:00:14]} 31. Nxh4 {[%clk 0:00:27]}  f4 {[%clk 0:00:14]} 32. Nd6 {[%clk 0:00:18]}  Re7 {[%clk 0:00:14]} 33. Ne4+ {[%clk 0:00:18]}  Kf7 {[%clk 0:00:14]} 34. Nf5 {[%clk 0:00:14]}  Rc7 {[%clk 0:00:13]} 35. Kg2 {[%clk 0:00:10]}  Ke6 {[%clk 0:00:12]} 36. Nh4 {[%clk 0:00:05]}  c4 {[%clk 0:00:11]} 37. dxc4 {[%clk 0:00:02]}  Rxc4 {[%clk 0:00:12]} 38. Nf3 {[%clk 0:00:02]}  fxg3 {[%clk 0:00:10]} 39. Kxg3 {[%clk 0:00:02]}  Ke7 {[%clk 0:00:04]} 40. Ned2 {[%clk 0:00:02]}  Rxc2 {[%clk 0:00:04]} 41. Rxc2 {[%clk 0:00:02]}  Nxc2 {[%clk 0:00:05]} 42. Kg4 {[%clk 0:00:02]}  Kd6 {[%clk 0:00:04]} 43. Kf5 {[%clk 0:00:02]}  Kc5 {[%clk 0:00:04]} 44. Ke4 {[%clk 0:00:02]}  Ndb4 {[%clk 0:00:03]} 45. Ne5 {[%clk 0:00:02]}  Kb5 {[%clk 0:00:03]} 46. f4 {[%clk 0:00:02]} 1-0


[Site "https://www.chess.com"]

[Event "Titled Tuesday Blitz July 05 Early 2022"]
[White "Tristan, Leonardo"]
[Black "Vlassov, Nikolai"]
[WhiteFideId "113816"]
[BlackFideId "4103360"]
[WhiteElo "2404"]
[BlackElo "2324"]
[Result "1-0"]
[Round "10"]
[TimeControl "180+1"]
[Date "2022.07.05"]
[WhiteClock "0:01:00"]
[BlackClock "0:00:19"]

1. d4 {[%clk 0:03:00]}  Nf6 {[%clk 0:02:59]} 2. Nf3 {[%clk 0:03:01]}  e6 {[%clk 0:02:59]} 3. Bf4 {[%clk 0:03:01]}  c5 {[%clk 0:02:59]} 4. e3 {[%clk 0:03:01]}  b6 {[%clk 0:02:59]} 5. Nbd2 {[%clk 0:02:58]}  Bb7 {[%clk 0:03:00]} 6. Bd3 {[%clk 0:02:56]}  Be7 {[%clk 0:03:00]} 7. h3 {[%clk 0:02:56]}  d6 {[%clk 0:02:59]} 8. O-O {[%clk 0:02:56]}  h6 {[%clk 0:03:00]} 9. Bh2 {[%clk 0:02:49]}  Nbd7 {[%clk 0:02:59]} 10. Re1 {[%clk 0:02:40]}  Qc7 {[%clk 0:02:59]} 11. c3 {[%clk 0:02:27]}  g5 {[%clk 0:02:59]} 12. e4 {[%clk 0:02:20]}  g4 {[%clk 0:02:59]} 13. hxg4 {[%clk 0:02:20]}  Nxg4 {[%clk 0:02:59]} 14. Bg3 {[%clk 0:02:17]}  h5 {[%clk 0:02:59]} 15. Nh2 {[%clk 0:01:58]}  Nxh2 {[%clk 0:02:56]} 16. Bxh2 {[%clk 0:01:58]}  O-O-O {[%clk 0:02:52]} 17. Qf3 {[%clk 0:01:55]}  f5 {[%clk 0:02:45]} 18. Qh3 {[%clk 0:01:53]}  Rdg8 {[%clk 0:02:40]} 19. Bf1 {[%clk 0:01:29]}  fxe4 {[%clk 0:02:30]} 20. Qxe6 {[%clk 0:01:23]}  Kd8 {[%clk 0:01:33]} 21. Nxe4 {[%clk 0:01:19]}  Nf8 {[%clk 0:01:22]} 22. Qf7 {[%clk 0:01:18]}  cxd4 {[%clk 0:01:08]} 23. Nf6 {[%clk 0:01:03]}  Bc6 {[%clk 0:00:26]} 24. Nxg8 {[%clk 0:01:00]}  Bg5 {[%clk 0:00:19]} 25. Qxf8+ {[%clk 0:01:00]} 1-0


[Site "https://www.chess.com"]